bitfinex/quotes_BTCUSD_20220213
["timestamp","ask_amount","ask_price","bid_price","bid_amount"]
[1644767880686,0.00046784,42600.0,42597.0,0.29521648]
[1644767880887,0.00046784,42600.0,42598.0,0.233197]
[1644767881083,0.676107,42616.0,42610.0,0.08475139]
[1644767881084,0.176107,42616.0,42610.0,0.08475139]
[1644767881290,0.058689,42612.0,42610.0,0.31786239]
[1644767881483,0.058688,42613.0,42610.0,0.31786539]
[1644767882628,0.176064,42613.0,42610.0,0.31786539]
[1644767882831,0.058691,42612.0,42610.0,0.08475139]
[1644767883232,0.058691,42612.0,42598.0,0.36884754]
[1644767883233,0.058691,42612.0,42598.0,0.00023238]
[1644767883530,0.48722649,42611.0,42599.0,0.00023238]
[1644767883730,0.331341,42610.0,42599.0,0.00023238]
[1644767883932,0.058706,42607.0,42598.0,0.00023238]
[1644767884131,0.058706,42605.0,42597.0,0.00023238]
[1644767884332,0.117411,42604.0,42596.0,0.23367151]
[1644767884530,0.117411,42606.0,42596.0,0.23367151]
[1644767884729,0.117411,42606.0,42600.0,0.06477671]
[1644767884930,0.00046841,42602.0,42601.0,0.233177]
[1644767885331,0.00046841,42602.0,42601.0,0.23340938]
[1644767886093,0.058693,42608.0,42607.0,0.08156733]
[1644767886291,0.058693,42608.0,42602.0,0.22865346]
[1644767886594,0.058693,42608.0,42602.0,0.22888584]
[1644767886793,0.058693,42608.0,42602.0,0.22865346]
[1644767887191,0.058697,42607.0,42603.0,0.233161]
[1644767887392,0.058694,42606.0,42603.0,0.233161]
[1644767887593,0.058694,42606.0,42603.0,0.23339338]
[1644767887994,0.00046837,42607.0,42603.0,0.23339338]
[1644767888393,0.05869,42610.0,42609.0,0.08526957]
[1644767888593,0.117379,42611.0,42609.0,0.08526957]
[1644767888793,0.117379,42611.0,42610.0,0.233115]
[1644767888996,0.117379,42611.0,42609.0,0.08550195]
[1644767889198,0.00417154,42612.0,42609.0,0.08550195]
[1644767889199,0.00417154,42612.0,42610.0,0.233115]
[1644767889395,0.00417154,42612.0,42610.0,0.23334738]
[1644767889833,0.00417154,42612.0,42610.0,0.00023238]
[1644767890029,0.00417154,42612.0,42609.0,0.08526957]
[1644767890431,0.00417154,42612.0,42610.0,0.233114]
[1644767890631,0.00417154,42612.0,42610.0,0.00023238]
[1644767890830,0.00417154,42612.0,42609.0,0.08526957]
[1644767891031,0.12155354,42612.0,42610.0,0.233114]
[1644767891232,0.05959234,42612.0,42606.0,0.233137]
[1644767891436,0.058695,42611.0,42606.0,0.233137]
[1644767891633,0.058695,42611.0,42606.0,0.23336938]
[1644767892031,0.058695,42610.0,42606.0,0.23336938]
[1644767892231,0.058695,42610.0,42609.0,0.44070892]
[1644767892835,0.00037105,42611.0,42609.0,0.44070892]
[1644767893134,0.36424127,42620.0,42610.0,0.233115]
[1644767893135,0.058684,42614.0,42610.0,0.233115]
[1644767893334,0.00039383,42612.0,42610.0,0.23334738]
[1644767894384,0.058686,42614.0,42610.0,0.23334738]
[1644767894581,0.00039383,42613.0,42610.0,0.23334738]
[1644767894980,0.00039383,42613.0,42610.0,0.50486307]
[1644767895180,0.00039383,42613.0,42610.0,0.23334738]
[1644767895581,0.058686,42614.0,42610.0,0.23334738]
[1644767895781,0.00039383,42614.0,42610.0,0.23334738]
[1644767896184,0.00039383,42614.0,42610.0,0.50941768]
[1644767896785,0.31460938,42620.0,42618.0,0.07151873]
[1644767896991,0.19930938,42620.0,42618.0,0.07151873]
[1644767897448,0.058682,42619.0,42618.0,0.07151873]
[1644767897650,0.058682,42619.0,42611.0,0.233098]
[1644767898047,0.058682,42619.0,42611.0,0.23333038]
[1644767898249,0.117369,42620.0,42611.0,0.233105]
[1644767898250,0.00038872,42617.0,42611.0,0.233105]
[1644767898955,0.058684,42616.0,42613.0,0.08532288]
[1644767899150,0.117369,42616.0,42614.0,0.233087]
[1644767899350,0.117369,42616.0,42613.0,0.08532288]
[1644767899351,0.11775772,42616.0,42613.0,0.08532288]
[1644767899750,0.11775772,42616.0,42614.0,0.233087]
[1644767899951,0.23138487,42608.0,42607.0,0.49280258]
[1644767900151,0.23138487,42608.0,42607.0,0.72592858]
[1644767900751,0.23138487,42608.0,42607.0,0.80704151]
[1644767901379,0.23138487,42608.0,42607.0,0.51362837]
[1644767903579,0.23138487,42608.0,42607.0,0.82001158]
[1644767903981,0.23138487,42608.0,42607.0,2.06301158]
[1644767905032,0.23138487,42608.0,42607.0,0.51362837]
[1644767905332,0.23138487,42608.0,42607.0,0.31423893]
[1644767905533,0.23138487,42608.0,42607.0,0.51362837]
[1644767906134,0.23138487,42608.0,42607.0,0.31423893]
[1644767906535,0.23723326,42608.0,42607.0,0.31423893]
[1644767907135,0.23723326,42608.0,42607.0,1.75662837]
[1644767907536,0.23723326,42608.0,42607.0,1.55723893]
[1644767909482,0.23723326,42608.0,42607.0,1.75674985]
[1644767911386,0.23723326,42608.0,42607.0,1.75674841]
[1644767912188,0.23723326,42608.0,42607.0,1.55723893]
[1644767912434,0.23723326,42608.0,42607.0,1.75674841]
[1644767912630,0.23723326,42608.0,42607.0,1.55723893]
[1644767915732,0.23723326,42608.0,42607.0,1.60723893]
[1644767915931,0.23723326,42608.0,42607.0,1.60747069]
[1644767916578,0.23723326,42608.0,42607.0,1.55747069]
[1644767920633,0.23318794,42608.0,42607.0,1.55747069]
[1644767921235,0.234552,42608.0,42607.0,1.55747069]
[1644767921635,0.23721709,42608.0,42607.0,1.55747069]
[1644767925284,0.23721709,42608.0,42607.0,0.31447069]
[1644767925484,0.23721709,42608.0,42607.0,0.56371417]
[1644767925681,0.23721709,42608.0,42607.0,0.56348241]
[1644767926082,0.23721709,42608.0,42607.0,0.31423893]
[1644767926282,0.23721709,42608.0,42607.0,0.31447069]
[1644767926482,0.23493776,42608.0,42607.0,0.31447069]
[1644767926683,0.23448663,42608.0,42607.0,0.31447069]
[1644767927936,0.23448663,42608.0,42607.0,0.31423893]
[1644767929135,0.23448663,42608.0,42607.0,0.233126]
[1644767930134,0.23448663,42608.0,42607.0,0.48236948]
[1644767930737,0.23448663,42608.0,42607.0,0.233126]
[1644767931200,0.23489647,42608.0,42607.0,0.233126]
[1644767932002,0.23489647,42608.0,42607.0,0.80302732]
[1644767932202,0.23489647,42608.0,42607.0,0.50393263]
[1644767934004,0.23489647,42608.0,42607.0,0.97712501]
[1644767934405,0.00038966,42610.0,42607.0,1.80560863]
[1644767934605,0.00038966,42610.0,42609.0,0.8337451]
[1644767935236,0.1156,42617.0,42609.0,0.8337451]
[1644767935437,0.1156,42617.0,42616.0,0.08244184]
[1644767935637,0.058681,42619.0,42617.0,0.07962928]
[1644767936237,0.058681,42618.0,42617.0,0.07962928]
[1644767937038,0.19969904,42620.0,42617.0,0.07962928]
[1644767937636,0.19930938,42620.0,42617.0,0.07962928]
[1644767937840,0.19930938,42618.0,42617.0,0.07962928]
[1644767938885,0.19930938,42619.0,42617.0,0.07962928]
[1644767940485,0.31705503,42620.0,42617.0,0.07962928]
[1644767941089,0.25837703,42620.0,42617.0,0.07962928]
[1644767941285,0.00243104,42619.0,42618.0,0.00175835]
[1644767942086,0.20174042,42619.0,42618.0,0.00175835]
[1644767942338,0.00243104,42619.0,42618.0,0.00175835]
[1644767942937,0.20174042,42619.0,42618.0,0.00175835]
[1644767943136,0.00243104,42619.0,42618.0,0.00175835]
[1644767943337,0.20174042,42619.0,42618.0,0.00175835]
[1644767943536,0.20174042,42619.0,42618.0,0.06569635]
[1644767943740,0.00243104,42619.0,42618.0,0.06569635]
[1644767946386,0.00243104,42619.0,42618.0,0.06778914]
[1644767946682,0.00243104,42619.0,42618.0,0.0681731]
[1644767947487,0.00243104,42619.0,42618.0,0.0042351]
[1644767947885,0.00243104,42619.0,42606.0,0.24956762]
[1644767947886,0.0032929,42617.0,42606.0,0.24956762]
[1644767948086,0.19947227,42614.0,42605.0,0.24956762]
[1644767948487,0.26646984,42609.0,42605.0,0.24956762]
[1644767948689,0.26646984,42609.0,42604.0,0.00023176]
[1644767948892,0.60177596,42608.0,42602.0,0.00023176]
[1644767949087,0.60177596,42608.0,42600.0,0.015]
[1644767949088,0.17609,42608.0,42600.0,0.015]
[1644767949287,0.117393,42608.0,42600.0,0.015]
[1644767949587,0.117393,42608.0,42600.0,0.22384321]
[1644767949588,0.058697,42608.0,42600.0,0.22384321]
[1644767949841,0.00039075,42606.0,42600.0,0.22384321]
[1644767950237,0.05908875,42606.0,42600.0,0.22384321]
[1644767950437,0.05908875,42606.0,42603.0,0.08146628]
[1644767950834,0.058698,42606.0,42603.0,0.08146628]
[1644767951034,0.29316156,42609.0,42603.0,0.08146628]
[1644767951235,0.00039083,42607.0,42603.0,0.08146628]
[1644767952034,0.276082,42610.0,42603.0,0.08146628]
[1644767952235,0.00039083,42607.0,42603.0,0.08146628]
[1644767952636,0.00039083,42607.0,42603.0,0.14015328]
[1644767953236,0.1228,42613.0,42603.0,0.14015328]
[1644767953438,0.00039083,42607.0,42603.0,0.14015328]
[1644767954487,0.1228,42613.0,42611.0,0.20104922]
[1644767954685,0.058685,42615.0,42611.0,0.20104922]
[1644767955886,0.05907581,42615.0,42611.0,0.20104922]
[1644767956086,0.05907581,42615.0,42612.0,0.06924883]
[1644767956485,0.00039081,42615.0,42612.0,0.06924883]
[1644767956689,0.05907581,42615.0,42611.0,0.20104922]
[1644767956887,0.058685,42615.0,42611.0,0.20104922]
[1644767957085,0.00039081,42616.0,42611.0,0.20104922]
[1644767958136,0.20271563,42617.0,42611.0,0.20104922]
[1644767958339,0.00039081,42616.0,42604.0,0.25830334]
[1644767958538,0.00039081,42616.0,42604.0,0.25807158]
[1644767958937,0.00039081,42616.0,42605.0,0.058686]
[1644767959138,0.05907581,42616.0,42604.0,0.25807158]
[1644767959342,0.058685,42616.0,42604.0,0.25830334]
[1644767959539,0.05867415,42616.0,42610.0,0.07646858]
[1644767959739,0.4646446,42617.0,42610.0,0.07646858]
[1644767959940,0.68311215,42617.0,42610.0,0.07646858]
[1644767960240,0.42500442,42617.0,42610.0,0.07646858]
[1644767960841,0.26522187,42617.0,42610.0,0.07646858]
[1644767961084,0.00416925,42615.0,42610.0,0.07646858]
[1644767962687,0.06285225,42615.0,42610.0,0.07646858]
[1644767962885,0.00416925,42615.0,42610.0,0.07646858]
[1644767963085,0.00416925,42615.0,42611.0,0.27408876]
[1644767963686,0.00416925,42615.0,42614.0,0.21999622]
[1644767963887,0.00416925,42615.0,42610.0,0.07646858]
[1644767964489,0.06285525,42615.0,42610.0,0.07646858]
[1644767964935,0.00416925,42615.0,42610.0,0.27354025]
[1644767965536,0.00463937,42615.0,42611.0,0.26070274]
[1644767965736,0.25910183,42610.0,42608.0,0.24948858]
[1644767965935,0.25910183,42610.0,42609.0,0.47574685]
[1644767966536,0.25910183,42610.0,42609.0,0.53442485]
[1644767967138,0.25910183,42610.0,42609.0,0.59774284]
[1644767968685,0.25910183,42610.0,42607.0,0.24948858]
[1644767968884,0.25910183,42610.0,42603.0,0.00023176]
[1644767968885,0.25910183,42610.0,42603.0,0.3]
[1644767969085,0.25910183,42610.0,42603.0,0.30023176]
[1644767969282,0.25910183,42610.0,42603.0,0.3]
[1644767969685,0.058696,42608.0,42600.0,0.50454239]
[1644767969888,0.058702,42606.0,42604.0,0.07050003]
[1644767970681,0.058696,42606.0,42604.0,0.07050003]
[1644767971084,0.26400898,42610.0,42604.0,0.07050003]
[1644767971284,0.26583113,42610.0,42604.0,0.07050003]
[1644767971684,0.32452313,42610.0,42604.0,0.07050003]
[1644767971883,0.32452213,42610.0,42604.0,0.07050003]
[1644767972083,0.24983309,42607.0,42604.0,0.07050003]
[1644767974035,0.0587,42606.0,42604.0,0.07050003]
[1644767974240,0.30853409,42607.0,42604.0,0.07050003]
[1644767975236,0.058699,42606.0,42604.0,0.07050003]
[1644767975536,0.117399,42606.0,42604.0,0.07050003]
[1644767976185,0.11948593,42606.0,42604.0,0.07050003]
[1644767977787,0.32990509,42606.0,42604.0,0.07050003]
[1644767977992,0.42990509,42606.0,42601.0,0.00023176]
[1644767978192,0.058702,42605.0,42599.0,0.00023176]
[1644767978391,0.058711,42604.0,42598.0,0.00043104]
[1644767978588,0.058711,42604.0,42595.0,0.30023176]
[1644767978789,0.058711,42604.0,42596.0,0.00023176]
[1644767978990,0.058711,42604.0,42601.0,0.0866411]
[1644767979190,0.29284438,42603.0,42601.0,0.0866411]
[1644767980038,0.117414,42602.0,42596.0,0.00023176]
[1644767980237,0.058708,42602.0,42595.0,0.00023176]
[1644767980436,0.058708,42602.0,42594.0,0.00141866]
[1644767981039,0.23413838,42603.0,42597.0,0.1995688]
[1644767981238,0.058703,42602.0,42597.0,0.1995688]
[1644767981437,0.058703,42602.0,42596.0,0.19980056]
[1644767981637,0.058703,42602.0,42596.0,0.1995688]
[1644767981839,0.058703,42602.0,42596.0,0.19980056]
[1644767982039,0.35155338,42603.0,42601.0,0.06644728]
[1644767982239,0.117419,42602.0,42601.0,0.06644728]
[1644767982641,0.29284538,42603.0,42601.0,0.06644728]
[1644767982837,0.058704,42602.0,42601.0,0.06644728]
[1644767983239,0.35154938,42603.0,42601.0,0.06644728]
[1644767983784,0.29284238,42603.0,42601.0,0.06644728]
[1644767985286,0.058704,42602.0,42601.0,0.06644728]
[1644767985886,0.06376463,42602.0,42601.0,0.06644728]
[1644767986185,0.06567444,42602.0,42601.0,0.06644728]
[1644767988937,0.00697044,42602.0,42601.0,0.06644728]
[1644767989937,0.00686487,42602.0,42601.0,0.3166253]
[1644767992886,0.00686487,42602.0,42601.0,0.06644728]
[1644767993091,0.00686487,42602.0,42599.0,0.00023176]
[1644767993289,0.35192649,42602.0,42598.0,0.05046681]
[1644767993888,0.26128353,42599.0,42598.0,0.05046681]
[1644767994087,0.26128353,42599.0,42598.0,0.05]
[1644767994286,0.26128353,42599.0,42598.0,0.0504668]
[1644767995343,0.50774417,42599.0,42598.0,0.05]
[1644767995541,0.26128353,42599.0,42598.0,0.05]
[1644767995744,0.02378681,42593.0,42585.0,1.68241]
[1644767995941,0.02378681,42593.0,42591.0,0.0132]
[1644767997341,0.02378681,42593.0,42592.0,0.0727925]
[1644767997739,0.02378681,42593.0,42592.0,0.0677925]
[1644767998787,0.02378681,42593.0,42591.0,0.0132]
[1644767999388,0.22575888,42592.0,42591.0,0.0132]
[1644767999990,0.02378681,42593.0,42591.0,0.08707228]
[1644768001093,0.02473854,42593.0,42592.0,0.20421956]
[1644768002189,0.02473854,42593.0,42592.0,0.20479598]
[1644768005340,0.000481,42594.0,42592.0,0.20479598]
[1644768005642,0.000481,42594.0,42592.0,0.42039076]
[1644768005840,0.000481,42594.0,42593.0,0.00063642]
[1644768006087,0.000481,42594.0,42593.0,0.20969525]
[1644768006291,0.00047108,42594.0,42593.0,0.20969525]
[1644768006489,0.00047108,42594.0,42593.0,0.00063642]
[1644768007091,0.00047108,42594.0,42593.0,0.20017612]
[1644768008289,0.00047108,42594.0,42593.0,0.00063642]
[1644768009091,0.00047108,42594.0,42593.0,0.16215394]
[1644768009938,0.00047108,42594.0,42593.0,0.44762651]
[1644768010138,0.00547313,42594.0,42593.0,0.44762651]
[1644768010939,0.00547313,42594.0,42593.0,0.64744815]
[1644768011138,0.00547313,42594.0,42593.0,0.44785451]
[1644768011338,0.00510287,42594.0,42593.0,0.44785451]
[1644768011542,0.05916842,42601.0,42593.0,0.44785451]
[1644768011543,0.058705,42599.0,42593.0,0.64744866]
[1644768011740,0.00046442,42601.0,42595.0,0.19959415]
[1644768011942,0.00046442,42601.0,42593.0,0.69665656]
[1644768011943,0.00046442,42601.0,42597.0,0.00063642]
[1644768012141,0.5097,42606.0,42597.0,0.00063642]
[1644768012342,0.5097,42606.0,42597.0,0.00086442]
[1644768012543,0.00046444,42601.0,42595.0,0.19959415]
[1644768012741,0.00046444,42601.0,42600.0,0.26566153]
[1644768013341,0.058698,42605.0,42600.0,0.26566153]
[1644768013585,0.00014396,42603.0,42600.0,0.26566153]
[1644768013787,0.058705,42602.0,42600.0,0.26566153]
[1644768013990,0.00014396,42603.0,42600.0,0.26566153]
[1644768014194,0.331318,42602.0,42600.0,0.06925993]
[1644768014389,0.11754696,42603.0,42602.0,0.16151752]
[1644768014589,0.058701,42603.0,42602.0,0.16151752]
[1644768014788,0.05884496,42603.0,42602.0,0.16151752]
[1644768014987,0.05884496,42603.0,42602.0,0.16215394]
[1644768014988,0.11755196,42603.0,42602.0,0.16215394]
[1644768015689,0.117408,42603.0,42602.0,0.16215394]
[1644768015888,0.058699,42604.0,42602.0,0.16215394]
[1644768016091,0.117399,42604.0,42602.0,0.16215394]
[1644768016292,0.117399,42604.0,42602.0,0.16151752]
[1644768016490,0.117399,42604.0,42603.0,0.00063642]
[1644768016695,0.3722523,42604.0,42603.0,0.00063642]
[1644768017091,0.36632576,42604.0,42603.0,0.00063642]
[1644768017355,0.765459,42604.0,42603.0,0.00063642]
[1644768017551,0.36632576,42604.0,42603.0,0.00063642]
[1644768017749,0.46632576,42604.0,42603.0,0.00063642]
[1644768017950,0.665459,42604.0,42603.0,0.00063642]
[1644768018150,0.996777,42604.0,42603.0,0.00063642]
[1644768018349,0.665459,42604.0,42603.0,0.00063642]
[1644768018552,0.8252875,42604.0,42603.0,0.00063642]
[1644768018752,0.765459,42604.0,42603.0,0.00063642]
[1644768019152,0.565459,42604.0,42602.0,0.01215394]
[1644768019455,0.565459,42604.0,42600.0,0.06925993]
[1644768019456,0.36632576,42604.0,42600.0,0.06925993]
[1644768019652,0.058706,42602.0,42600.0,0.06925993]
[1644768020552,0.0025576,42604.0,42601.0,0.21073642]
[1644768020752,0.0612596,42604.0,42600.0,0.06925993]
[1644768020952,0.00046498,42603.0,42600.0,0.06925993]
[1644768021397,0.00046498,42603.0,42602.0,0.00035852]
[1644768021897,0.00332629,42604.0,42602.0,0.00035852]
[1644768022098,0.058703,42603.0,42602.0,0.00035852]
[1644768022294,0.12073229,42604.0,42602.0,0.00035852]
[1644768022694,0.31986553,42604.0,42602.0,0.00035852]
[1644768024702,0.31986553,42604.0,42603.0,0.01215394]
[1644768025148,0.31730793,42604.0,42603.0,0.01215394]
[1644768026148,0.31730793,42604.0,42597.0,0.19959415]
[1644768026149,0.01402224,42598.0,42597.0,0.19959415]
[1644768026351,0.01402224,42598.0,42596.0,0.19971019]
[1644768027255,0.01402224,42598.0,42596.0,0.28555026]
[1644768028255,0.01402224,42598.0,42597.0,0.26908448]
[1644768028912,0.01402224,42598.0,42597.0,0.46879467]
[1644768029112,0.01402224,42598.0,42596.0,0.08584007]
[1644768029313,0.01402224,42598.0,42596.0,0.28555095]
[1644768029814,0.00137064,42597.0,42596.0,0.28555095]
[1644768031011,0.00137064,42597.0,42596.0,0.55001726]
[1644768031211,0.00204015,42597.0,42596.0,0.55001726]
[1644768031614,0.00204015,42597.0,42596.0,0.35030638]
[1644768032939,0.00204015,42597.0,42596.0,0.86287358]
[1644768033535,0.00204015,42597.0,42596.0,0.59974485]
[1644768034339,0.00204015,42597.0,42596.0,0.35030638]
[1644768034743,0.00204015,42597.0,42596.0,0.59974485]
[1644768035142,0.00204015,42597.0,42596.0,0.35030638]
[1644768035542,0.00204015,42597.0,42596.0,0.59974485]
[1644768035741,0.00204015,42597.0,42596.0,0.87130673]
[1644768036191,0.00204015,42597.0,42596.0,0.87181841]
[1644768036590,0.00204015,42597.0,42596.0,0.62237994]
[1644768036791,0.00204015,42597.0,42596.0,0.87202199]
[1644768036989,0.00204015,42597.0,42596.0,0.62237994]
[1644768039196,0.00092846,42597.0,42596.0,1.86537994]
[1644768039496,0.00092846,42597.0,42596.0,2.16495247]
[1644768039696,0.00092846,42597.0,42596.0,1.86537994]
[1644768039937,0.00190308,42597.0,42596.0,1.86537994]
[1644768040141,0.00190308,42597.0,42596.0,2.16495617]
[1644768040339,0.00190308,42597.0,42596.0,0.92195459]
[1644768040537,0.00190308,42597.0,42596.0,0.62237994]
[1644768040737,0.00190308,42597.0,42596.0,0.92195401]
[1644768040942,0.00190308,42597.0,42596.0,0.62237994]
[1644768041138,0.00196276,42597.0,42596.0,1.86486826]
[1644768041338,0.01546321,42598.0,42596.0,1.86486826]
[1644768041542,0.19913324,42608.0,42599.0,1.243]
[1644768041842,0.41893033,42610.0,42605.0,0.19969447]
[1644768041843,0.25910183,42610.0,42605.0,0.19969447]
[1644768042040,0.25910183,42610.0,42606.0,0.07098451]
[1644768042439,0.25910183,42610.0,42608.0,0.24959382]
[1644768042642,0.51692707,42610.0,42608.0,0.24959382]
[1644768042838,0.63431107,42610.0,42606.0,0.07098451]
[1644768043042,0.51692707,42610.0,42606.0,0.07098451]
[1644768043241,0.19913324,42608.0,42606.0,0.07098451]
[1644768043690,0.25782624,42608.0,42601.0,0.19969447]
[1644768043889,0.25782624,42608.0,42602.0,0.47815023]
[1644768044090,0.25782624,42608.0,42603.0,0.19969447]
[1644768044292,0.058693,42608.0,42602.0,0.6778447]
[1644768044890,0.00046639,42607.0,42602.0,0.6778447]
[1644768045090,0.00046639,42607.0,42606.0,0.07202264]
[1644768045893,0.117387,42608.0,42606.0,0.07202264]
[1644768046392,0.117387,42608.0,42602.0,0.42211498]
[1644768046593,0.058694,42607.0,42602.0,0.42211498]
[1644768047193,0.00046639,42607.0,42602.0,0.42211498]
[1644768047654,0.00046639,42607.0,42606.0,0.0660629]
[1644768048255,0.25875757,42609.0,42602.0,0.42211498]
[1644768048453,0.20052995,42609.0,42602.0,0.42211498]
[1644768049353,0.20006357,42609.0,42605.0,0.07158353]
[1644768049755,0.00165179,42607.0,42605.0,0.07158353]
[1644768051189,0.00092972,42606.0,42605.0,0.07158353]
[1644768054838,0.00291013,42606.0,42605.0,0.07433506]
[1644768056242,0.00291013,42606.0,42602.0,1.46542051]
[1644768056243,0.05147638,42603.0,42602.0,1.46542051]
[1644768056846,0.05147638,42603.0,42602.0,1.52410251]
[1644768057044,0.05147638,42603.0,42602.0,1.77365956]
[1644768057244,0.05147638,42603.0,42602.0,1.52410251]
[1644768057642,0.05147638,42603.0,42602.0,1.59874233]
[1644768058443,0.05147638,42603.0,42602.0,1.84827305]
[1644768058694,0.05147638,42603.0,42602.0,0.60527305]
[1644768058895,0.05147638,42603.0,42602.0,0.6183149]
[1644768059094,0.05147638,42603.0,42602.0,1.86008848]
[1644768059294,0.05147638,42603.0,42602.0,0.61708848]
[1644768059796,0.05147638,42603.0,42602.0,0.8666192]
[1644768059997,0.05454343,42603.0,42602.0,0.8666192]
[1644768060602,0.05454343,42603.0,42602.0,0.61708848]
[1644768061599,0.0556417,42603.0,42602.0,0.61708848]
[1644768061999,0.0556417,42603.0,42602.0,0.55840648]
[1644768066591,0.05586857,42603.0,42602.0,0.55840648]
[1644768068792,0.05586857,42603.0,42602.0,0.07463982]
[1644768068995,0.05586857,42603.0,42602.0,0.27426901]
[1644768069940,0.05473705,42603.0,42602.0,0.27426901]
[1644768070843,0.05473705,42603.0,42602.0,0.07463982]
[1644768071141,0.05473705,42603.0,42602.0,0.07487393]
[1644768071341,0.05473705,42603.0,42602.0,0.33335242]
[1644768071539,0.05473705,42603.0,42602.0,0.07487393]
[1644768071738,0.05473705,42603.0,42602.0,0.274512]
[1644768071939,0.05473705,42603.0,42602.0,0.07487393]
[1644768072539,0.05473705,42603.0,42602.0,0.274512]
[1644768075792,0.05473705,42603.0,42602.0,0.00023411]
[1644768075990,0.05473705,42603.0,42602.0,0.19987218]
[1644768076191,0.05473705,42603.0,42601.0,0.19963807]
[1644768076590,0.05473705,42603.0,42602.0,0.19963807]
[1644768076792,0.05473705,42603.0,42597.0,0.00069503]
[1644768076793,0.331318,42601.0,42597.0,0.00069503]
[1644768076992,0.05,42598.0,42597.0,0.00069503]
[1644768077191,0.431318,42598.0,42595.0,0.00022796]
[1644768077475,0.581318,42598.0,42597.0,0.00046706]
[1644768077673,0.25,42598.0,42597.0,0.00046706]
[1644768078075,0.2,42598.0,42597.0,0.00046706]
[1644768078376,0.058714,42596.0,42592.0,0.00022796]
[1644768078575,0.058714,42596.0,42595.0,0.00046707]
[1644768078776,0.117431,42599.0,42595.0,0.00046707]
[1644768078978,0.28498261,42598.0,42595.0,0.00046707]
[1644768079176,0.24574245,42600.0,42595.0,0.00046707]
[1644768079576,0.24574245,42600.0,42591.0,0.0132]
[1644768079577,0.058706,42599.0,42592.0,0.00022796]
[1644768079875,0.058706,42599.0,42595.0,0.00042523]
[1644768080677,0.117419,42598.0,42592.0,0.00022796]
[1644768080978,0.05871,42597.0,42595.0,0.00042523]
[1644768081901,0.11742,42597.0,42592.0,0.00022796]
[1644768082100,0.3437287,42596.0,42594.0,0.00042524]
[1644768082500,0.28639988,42595.0,42594.0,0.00042524]
[1644768082798,0.55299722,42595.0,42594.0,0.00042524]
[1644768083198,0.55299722,42595.0,42592.0,0.00022796]
[1644768083499,0.28639988,42595.0,42592.0,0.00042525]
[1644768083697,0.28639988,42595.0,42592.0,0.00065321]
[1644768084097,0.31388993,42598.0,42592.0,0.00065321]
[1644768084302,0.31388993,42598.0,42592.0,0.00022796]
[1644768084498,0.18947165,42596.0,42591.0,0.01385604]
[1644768084700,0.28389409,42595.0,42591.0,0.01385604]
[1644768084942,0.40131809,42595.0,42591.0,0.01385604]
[1644768085542,0.40131809,42595.0,42591.0,0.01342796]
[1644768085741,0.40131809,42595.0,42591.0,0.01385604]
[1644768086142,0.34260609,42595.0,42591.0,0.01385604]
[1644768086342,0.01751513,42589.0,42588.0,0.0032]
[1644768089889,0.0192441,42589.0,42588.0,0.0032]
[1644768090089,0.21404671,42589.0,42588.0,0.0032]
[1644768091093,0.21479752,42589.0,42588.0,0.0032]
[1644768092095,0.01999491,42589.0,42588.0,0.0032]
[1644768092964,0.15,42588.0,42583.0,0.01542629]
[1644768093155,0.331318,42585.0,42581.0,0.0135467]
[1644768093353,0.331318,42583.0,42581.0,0.00192664]
[1644768093656,0.47924205,42584.0,42580.0,0.00127632]
[1644768093657,0.390048,42581.0,42580.0,0.00127632]
[1644768093854,0.81530887,42581.0,42580.0,0.00127632]
[1644768094056,0.48399087,42581.0,42580.0,0.00127632]
[1644768094256,0.81530887,42581.0,42580.0,0.00127632]
[1644768094453,0.48399087,42581.0,42580.0,0.00127632]
[1644768095255,0.4,42580.0,42579.0,7.632e-05]
[1644768095457,0.66606476,42581.0,42579.0,7.632e-05]
[1644768095654,0.05,42580.0,42579.0,7.632e-05]
[1644768095855,0.35682648,42580.0,42579.0,7.632e-05]
[1644768096296,0.45682648,42580.0,42579.0,7.632e-05]
[1644768097397,0.50382648,42580.0,42579.0,7.632e-05]
[1644768098197,0.57781569,42580.0,42579.0,7.632e-05]
[1644768098799,0.57781569,42580.0,42574.0,0.0043]
[1644768098800,1.05,42578.0,42571.0,0.0143]
[1644768099007,0.405748,42577.0,42571.0,0.01601227]
[1644768099200,0.05,42576.0,42571.0,0.01601227]
[1644768099402,0.21394116,42574.0,42571.0,0.01601227]
[1644768099601,0.26094116,42574.0,42571.0,0.01601227]
[1644768100046,0.26094116,42574.0,42571.0,0.0143]
[1644768101047,0.5656343,42574.0,42571.0,0.0143]
[1644768101848,0.6656343,42574.0,42573.0,0.01832656]
[1644768102451,0.6656343,42574.0,42573.0,0.00332656]
[1644768103149,0.6656343,42574.0,42571.0,0.01419381]
[1644768103350,0.12946441,42573.0,42572.0,0.00022656]
[1644768103596,0.12946441,42573.0,42571.0,0.01395312]
[1644768104398,0.058755,42574.0,42571.0,0.01395312]
[1644768104598,0.235015,42575.0,42571.0,0.01395312]
[1644768104599,0.117506,42575.0,42571.0,0.01395312]
[1644768104899,0.3549229,42580.0,42571.0,0.06095312]
[1644768104900,0.0024669,42580.0,42571.0,0.06095312]
[1644768105103,0.00170715,42574.0,42571.0,0.06095312]
[1644768106200,0.00245781,42574.0,42571.0,0.06095312]
[1644768106797,0.00245781,42574.0,42572.0,0.27174125]
[1644768106798,0.00252102,42574.0,42572.0,0.27174125]
[1644768106997,0.00252102,42574.0,42572.0,0.27196781]
[1644768107199,0.00252102,42574.0,42573.0,0.047]
[1644768107444,0.00252102,42574.0,42573.0,0.34722656]
[1644768107445,0.00179155,42574.0,42573.0,0.34722656]
[1644768107851,0.00185476,42574.0,42573.0,0.34722656]
[1644768108646,0.00185476,42574.0,42573.0,0.04722656]
[1644768108843,0.00191797,42574.0,42573.0,0.04722656]
[1644768109244,0.00191797,42574.0,42573.0,0.047]
[1644768109445,0.00191797,42574.0,42573.0,0.33778538]
[1644768109844,0.00233629,42574.0,42573.0,0.33778538]
[1644768110848,0.0023995,42574.0,42573.0,0.33778538]
[1644768111092,0.00359124,42574.0,42573.0,0.33778538]
[1644768111493,0.00381775,42574.0,42573.0,0.33809118]
[1644768111894,0.00381775,42574.0,42573.0,0.33786462]
[1644768111895,0.00388096,42574.0,42573.0,0.33786462]
[1644768112094,0.0050727,42574.0,42573.0,0.33786462]
[1644768112695,0.0050727,42574.0,42573.0,0.0473058]
[1644768112898,0.00513591,42574.0,42573.0,0.0473058]
[1644768113402,0.00632765,42574.0,42573.0,0.0003058]
[1644768114096,0.25721653,42574.0,42573.0,0.0003058]
[1644768114295,0.25840827,42574.0,42573.0,0.0003058]
[1644768114949,0.5075826,42574.0,42573.0,0.0003058]
[1644768115149,0.50764581,42574.0,42573.0,0.0003058]
[1644768115351,0.50883755,42574.0,42573.0,0.0003058]
[1644768115552,0.47965826,42574.0,42573.0,0.0003058]
[1644768115751,0.47730936,42574.0,42573.0,0.0003058]